Cogmind - Beta 15 @@@ ROGUE MODE // 2025.06.19 @ 15:43:00 Player: quak Result: Destroyed by H-88 Terminator with KE Penetrator Performance ------------- Evolutions (8) 4000 Regions Visited (18) 3600 Robots Destroyed (3) 15 Value Destroyed (29) 29 Prototype IDs (0) 0 Alien Tech Used (0) 0 Bonus (3489) 3489 TOTAL SCORE: 11133 Bonus ------- Pacifist 2189 Entered DSFs 1000 Aligned with FarCom 300 Cogmind --------- Core Integrity 0/1450 Matter 300/300 Energy 98/100 System Corruption 0% Temperature Cool (0) Movement Core (50) Location -2/Research Parts ------- > --- POWER (17) ------- (None) > --- PROPULSION (2) --- (None) > --- UTILITY (2) ------ (None) > --- WEAPON (2) ------- (None) > --- INVENTORY (5) ---- (None) Peak State ------------ None Favorites ----------- Power None Propulsion None Utility None Weapon None Build | -11 -10 -10 -10 -9 -8 -8 -8 -6 -6 -5 -5 -5 -5 -4 -4 -4 -3 -2 ------- Run | Yrd Mat Min Exi Min Mat Sto Rec Fac DSF Fac Was Fac DSF Fac Upp Upp Res Res Slots Evolved 16 | . . . . . 4 . . 4 . 2 . . . 2 . . 2 2 Power 16 | . . . . . 4 . . 4 . 2 . . . 2 . . 2 2 Propulsion . | . . . . . . . . . . . . . . . . . . . Utility . | . . . . . . . . . . . . . . . . . . . Weapon . | . . . . . . . . . . . . . . . . . . . Parts Attached . | . . . . . . . . . . . . . . . . . . . Power . | . . . . . . . . . . . . . . . . . . . Engine . | . . . . . . . . . . . . . . . . . . . Core . | . . . . . . . . . . . . . . . . . . . Reactor . | . . . . . . . . . . . . . . . . . . . Propulsion . | . . . . . . . . . . . . . . . . . . . Treads . | . . . . . . . . . . . . . . . . . . . Leg . | . . . . . . . . . . . . . . . . . . . Wheel . | . . . . . . . . . . . . . . . . . . . Hover . | . . . . . . . . . . . . . . . . . . . Flight . | . . . . . . . . . . . . . . . . . . . Utility . | . . . . . . . . . . . . . . . . . . . Device . | . . . . . . . . . . . . . . . . . . . Storage . | . . . . . . . . . . . . . . . . . . . Processor . | . . . . . . . . . . . . . . . . . . . Hackware . | . . . . . . . . . . . . . . . . . . . Protection . | . . . . . . . . . . . . . . . . . . . Artifact . | . . . . . . . . . . . . . . . . . . . Weapon . | . . . . . . . . . . . . . . . . . . . Energy Gun . | . . . . . . . . . . . . . . . . . . . Energy Cannon . | . . . . . . . . . . . . . . . . . . . Ballistic Gun . | . . . . . . . . . . . . . . . . . . . Ballistic Cannon . | . . . . . . . . . . . . . . . . . . . Launcher . | . . . . . . . . . . . . . . . . . . . Special Weapon . | . . . . . . . . . . . . . . . . . . . Impact Weapon . | . . . . . . . . . . . . . . . . . . . Slashing Weapon . | . . . . . . . . . . . . . . . . . . . Piercing Weapon . | . . . . . . . . . . . . . . . . . . . Special Melee Weapon . | . . . . . . . . . . . . . . . . . . . Unidentified Prototypes . | . . . . . . . . . . . . . . . . . . . Parts Lost . | . . . . . . . . . . . . . . . . . . . Power . | . . . . . . . . . . . . . . . . . . . Propulsion . | . . . . . . . . . . . . . . . . . . . Utility . | . . . . . . . . . . . . . . . . . . . Weapon . | . . . . . . . . . . . . . . . . . . . Highest Loss Streak . | . . . . . . . . . . . . . . . . . . . To Critical Strikes . | . . . . . . . . . . . . . . . . . . . Average Backups . | . . . . . . . . . . . . . . . . . . . Power . | . . . . . . . . . . . . . . . . . . . Propulsion . | . . . . . . . . . . . . . . . . . . . Utility . | . . . . . . . . . . . . . . . . . . . Weapon . | . . . . . . . . . . . . . . . . . . . Tool/Special . | . . . . . . . . . . . . . . . . . . . Unused Backups . | . . . . . . . . . . . . . . . . . . . Power . | . . . . . . . . . . . . . . . . . . . Propulsion . | . . . . . . . . . . . . . . . . . . . Utility . | . . . . . . . . . . . . . . . . . . . Weapon . | . . . . . . . . . . . . . . . . . . . Tool/Special . | . . . . . . . . . . . . . . . . . . . Average Slot Usage (%) . | . . . . . . . . . . . . . . . . . . . Peak Build Rating . | . . . . . . . . . . . . . . . . . . . Average Rating . | . . . . . . . . . . . . . . . . . . . On Entrance . | . . . . . . . . . . . . . . . . . . . Naked Turns 1619 | . 68 97 76 152 73 70 64 71 30 102 78 108 15 121 129 34 149 182 Heaviest Build . | . . . . . . . . . . . . . . . . . . . Greatest Support 3 | 3 3 3 3 3 3 3 3 3 3 3 3 3 3 3 3 3 3 3 Greatest Overweight (x) . | . . . . . . . . . . . . . . . . . . . Average Overweight (x) . | . . . . . . . . . . . . . . . . . . . Largest Inventory Capacity 5 | 5 5 5 5 5 5 5 5 5 5 5 5 5 5 5 5 5 5 5 Average Capacity 5 | 5 5 5 5 5 5 5 5 5 5 5 5 5 5 5 5 5 5 5 Most Carried . | . . . . . . . . . . . . . . . . . . . Average Carried . | . . . . . . . . . . . . . . . . . . . Final Capacity 5 | 5 5 5 5 5 5 5 5 5 5 5 5 5 5 5 5 5 5 5 Final Carried . | . . . . . . . . . . . . . . . . . . . Class Distribution -------------------- 100% | Mutant Dominant Class ---------------- Mutant | -10/Materials Mutant | -10/Mines Mutant | -10/Exiles Mutant | -9/Mines Mutant | -8/Materials Mutant | -8/Storage Mutant | -8/Recycling Mutant | -6/Factory Mutant | -6/DSF Mutant | -5/Factory Mutant | -5/Waste Mutant | -5/Factory Mutant | -5/DSF Mutant | -4/Factory Mutant | -4/Upper Caves Mutant | -4/Upper Caves Mutant | -3/Research Mutant | -2/Research Resources | -11 -10 -10 -10 -9 -8 -8 -8 -6 -6 -5 -5 -5 -5 -4 -4 -4 -3 -2 ----------- Run | Yrd Mat Min Exi Min Mat Sto Rec Fac DSF Fac Was Fac DSF Fac Upp Upp Res Res Matter Collected 131 | 65 . 16 . . . . . . . . . . . . . . 50 . Remotely . | . . . . . . . . . . . . . . . . . . . Salvage Created 90 | . . . . . . . . . . . . . . 30 . . 60 . Parts 7 | . . . . . . . . . . . . . . 1 . . 6 . Haulers Intercepted . | . . . . . . . . . . . . . . . . . . . Recyclers Shooed 1 | 1 . . . . . . . . . . . . . . . . . . Parts Field Recycled . | . . . . . . . . . . . . . . . . . . . Retrieved Matter . | . . . . . . . . . . . . . . . . . . . Parts Self-Destructed . | . . . . . . . . . . . . . . . . . . . Prevented 2 | . . . . . . . . . . . . . . . . 2 . . Kills | -11 -10 -10 -10 -9 -8 -8 -8 -6 -6 -5 -5 -5 -5 -4 -4 -4 -3 -2 ------- Run | Yrd Mat Min Exi Min Mat Sto Rec Fac DSF Fac Was Fac DSF Fac Upp Upp Res Res Combat Hostiles Destroyed 1 | . . . . . . . . . . . . . . 1 . . . . Melee 1 | . . . . . . . . . . . . . . 1 . . . . Classes Destroyed 2 | . . . . . . . . . . . . . . 1 . . 1 . Worker 2 | . . . . . . . . . . . . . . . . . 2 . Swarmer 1 | . . . . . . . . . . . . . . 1 . . . . Best Kill Streak 2 | . . . . . . . . . . . . . . 1 . . 2 . Combat Bots Only 1 | . . . . . . . . . . . . . . 1 . . . . Max Kills in Single Turn 1 | . . . . . . . . . . . . . . 1 . . 1 . Gunslinging . | . . . . . . . . . . . . . . . . . . . Exploded . | . . . . . . . . . . . . . . . . . . . Melee 1 | . . . . . . . . . . . . . . 1 . . . . Uniques/NPCs Destroyed . | . . . . . . . . . . . . . . . . . . . Combat | -11 -10 -10 -10 -9 -8 -8 -8 -6 -6 -5 -5 -5 -5 -4 -4 -4 -3 -2 -------- Run | Yrd Mat Min Exi Min Mat Sto Rec Fac DSF Fac Was Fac DSF Fac Upp Upp Res Res Hostile Shots Fired 355 | . 15 12 . 1 39 . 2 . 17 42 . . 1 37 28 15 46 100 Missed 133 | . 6 6 . 1 11 . 2 . 9 18 . . 1 15 8 3 20 33 Hits 222 | . 9 6 . . 28 . . . 8 24 . . . 22 20 12 26 67 Melee 3 | . . . . . . . . . 3 . . . . . . . . . Projectile 219 | . 9 6 . . 28 . . . 5 24 . . . 22 20 12 26 67 Critical Strikes 7 | . 1 . . . 2 . . . . . . . . . . . 1 3 Damage Taken 4137 | 4 112 81 . . 431 . . . 297 395 . . . 343 304 173 528 1469 Core 4137 | 4 112 81 . . 431 . . . 297 395 . . . 343 304 173 528 1469 Absorbed by Shields . | . . . . . . . . . . . . . . . . . . . Core Remaining (%) 50 | 98 . . . 21 . . 21 . 65 . . . 60 . . 28 59 . Volleys Fired . | . . . . . . . . . . . . . . . . . . . Largest . | . . . . . . . . . . . . . . . . . . . Hottest . | . . . . . . . . . . . . . . . . . . . Shots Fired . | . . . . . . . . . . . . . . . . . . . Gun . | . . . . . . . . . . . . . . . . . . . Cannon . | . . . . . . . . . . . . . . . . . . . Launcher . | . . . . . . . . . . . . . . . . . . . Special . | . . . . . . . . . . . . . . . . . . . Kinetic . | . . . . . . . . . . . . . . . . . . . Thermal . | . . . . . . . . . . . . . . . . . . . Explosive . | . . . . . . . . . . . . . . . . . . . Electromagnetic . | . . . . . . . . . . . . . . . . . . . Robot Hit Streak . | . . . . . . . . . . . . . . . . . . . Robot Miss Streak . | . . . . . . . . . . . . . . . . . . . Penetration Max . | . . . . . . . . . . . . . . . . . . . Secondary Targets . | . . . . . . . . . . . . . . . . . . . Shots Hit Robots . | . . . . . . . . . . . . . . . . . . . Core Hits 4 | . . . . . . . . . . . . . . 1 . . 3 . Critical Kills . | . . . . . . . . . . . . . . . . . . . Critical Parts Destroyed . | . . . . . . . . . . . . . . . . . . . Critical Strikes . | . . . . . . . . . . . . . . . . . . . Melee Attacks . | . . . . . . . . . . . . . . . . . . . Impact . | . . . . . . . . . . . . . . . . . . . Slashing . | . . . . . . . . . . . . . . . . . . . Piercing . | . . . . . . . . . . . . . . . . . . . Sneak Attacks . | . . . . . . . . . . . . . . . . . . . Combat Hostiles . | . . . . . . . . . . . . . . . . . . . Follow-up Attacks . | . . . . . . . . . . . . . . . . . . . Damage Inflicted 169 | 9 13 . . . 6 . . . 2 . . . . 36 6 5 47 45 Guns . | . . . . . . . . . . . . . . . . . . . Cannons . | . . . . . . . . . . . . . . . . . . . Explosions . | . . . . . . . . . . . . . . . . . . . Melee . | . . . . . . . . . . . . . . . . . . . Ramming 169 | 9 13 . . . 6 . . . 2 . . . . 36 6 5 47 45 Kinetic . | . . . . . . . . . . . . . . . . . . . Thermal . | . . . . . . . . . . . . . . . . . . . Explosive . | . . . . . . . . . . . . . . . . . . . Electromagnetic . | . . . . . . . . . . . . . . . . . . . Impact . | . . . . . . . . . . . . . . . . . . . Slashing . | . . . . . . . . . . . . . . . . . . . Piercing . | . . . . . . . . . . . . . . . . . . . Highest Corruption 4 | . . . . . 1 1 1 . . 4 4 4 4 . . . . . Average Corruption 2 | . . . . . 1 1 1 . . 4 4 4 4 . . . . . Corruption Purged . | . . . . . . . . . . . . . . . . . . . Corruption Blocked . | . . . . . . . . . . . . . . . . . . . Effects 6 | . . . . . . . . . . 1 1 3 1 . . . . . Message Errors 2 | . . . . . . . . . . . 1 1 . . . . . . Heat Flow Errors 1 | . . . . . . . . . . . . 1 . . . . . . Energy Discharges 2 | . . . . . . . . . . . . 1 1 . . . . . Data Loss (minor) 1 | . . . . . . . . . . 1 . . . . . . . . Overload Shots . | . . . . . . . . . . . . . . . . . . . Overflow Damage . | . . . . . . . . . . . . . . . . . . . Projectiles . | . . . . . . . . . . . . . . . . . . . Explosions . | . . . . . . . . . . . . . . . . . . . Melee . | . . . . . . . . . . . . . . . . . . . Knockbacks 1 | . . . . . . . . . . . . . . . . . . 1 Impact 1 | . . . . . . . . . . . . . . . . . . 1 Kinetic . | . . . . . . . . . . . . . . . . . . . Secondary . | . . . . . . . . . . . . . . . . . . . Self-Inflicted Damage 75 | 4 6 . . . 2 . . . 1 . . . . 16 2 2 21 21 Shots . | . . . . . . . . . . . . . . . . . . . Rammed 38 | 2 2 . . . 3 . . . 1 . . 1 . 7 3 2 11 6 Targets Rammed 38 | 2 2 . . . 3 . . . 1 . . 1 . 7 3 2 11 6 Kicked . | . . . . . . . . . . . . . . . . . . . Crushed . | . . . . . . . . . . . . . . . . . . . Highest Temperature 86 | . 2 . . . 14 . . . . . . 86 . . . . . . Average Temperature 25 | . 2 . . . 7 . . . . . . 46 . . . . . . Received Heat Transfer 375 | . 63 42 . . 180 . . . . 9 . . . . . . 9 72 Siege Activations . | . . . . . . . . . . . . . . . . . . . Martial Activations . | . . . . . . . . . . . . . . . . . . . Shielding Activations . | . . . . . . . . . . . . . . . . . . . Robots Disrupted . | . . . . . . . . . . . . . . . . . . . Combat Hostiles . | . . . . . . . . . . . . . . . . . . . Robots Corrupted . | . . . . . . . . . . . . . . . . . . . Combat Hostiles . | . . . . . . . . . . . . . . . . . . . Parts Fried . | . . . . . . . . . . . . . . . . . . . Impact Corruptions . | . . . . . . . . . . . . . . . . . . . Robots Melted . | . . . . . . . . . . . . . . . . . . . Combat Hostiles . | . . . . . . . . . . . . . . . . . . . Parts Melted . | . . . . . . . . . . . . . . . . . . . Heat Transferred . | . . . . . . . . . . . . . . . . . . . Parts Sabotaged . | . . . . . . . . . . . . . . . . . . . Parts Stolen . | . . . . . . . . . . . . . . . . . . . Parts Stripped . | . . . . . . . . . . . . . . . . . . . Power Chain Reactions . | . . . . . . . . . . . . . . . . . . . Alert | -11 -10 -10 -10 -9 -8 -8 -8 -6 -6 -5 -5 -5 -5 -4 -4 -4 -3 -2 ------- Run | Yrd Mat Min Exi Min Mat Sto Rec Fac DSF Fac Was Fac DSF Fac Upp Upp Res Res Maximum Alert Level . | . . . . . . . . . . . . . . . . . . . Low Security (%) 100 | 100 100 100 . 100 100 100 100 100 100 100 100 100 100 100 . . 100 100 Level 1 . | . . . . . . . . . . . . . . . . . . . Level 2 . | . . . . . . . . . . . . . . . . . . . Level 3 . | . . . . . . . . . . . . . . . . . . . Level 4 . | . . . . . . . . . . . . . . . . . . . Level 5 . | . . . . . . . . . . . . . . . . . . . High Security . | . . . . . . . . . . . . . . . . . . . Max Security . | . . . . . . . . . . . . . . . . . . . Peak Influence 79 | . 5 30 . . 60 22 . . 3 14 . 18 8 34 . . 79 61 Initial 44 | . . . . . . 16 . . 3 1 . . 8 4 . . . 44 Average 10 | . . 4 . . 29 9 . . 3 2 . 5 8 6 . . 23 35 Influence Increases 450 | . 5 45 . . 65 6 . 5 . 18 . 32 . 44 60 . 123 47 Destroy 0b10 Robot/C 20 | . . . . . . . . . . . . . . 20 . . . . Destroy 0b10 Robot/NC 10 | . . . . . . . . . . . . . . . . . 10 . Successful Hack 165 | . 5 . . . 5 6 . 5 . 18 . 32 . 24 . . 38 32 Partial Spotted 30 | . . 15 . . . . . . . . . . . . . . . 15 Lose Combat Pursuer 225 | . . 30 . . 60 . . . . . . . . . 60 . 75 . Influence Decreases 449 | . 5 30 15 . 25 46 . . 2 21 . 20 4 28 70 14 44 125 Entered New Map 100 | . . . 15 . . 24 . . 2 2 . . 4 4 10 4 . 35 Time Decay 329 | . 5 10 . . 25 22 . . . 19 . 20 . 24 60 10 44 90 Lost Ally 20 | . . 20 . . . . . . . . . . . . . . . . Squads Dispatched 9 | . 1 . . . 2 1 . . 1 . . . . 1 . . . 3 Investigation 3 | . . . . . 2 . . . . . . . . 1 . . . . Extermination 1 | . . . . . . . . . . . . . . . . . . 1 Reinforcement 5 | . 1 . . . . 1 . . 1 . . . . . . . . 2 Assault . | . . . . . . . . . . . . . . . . . . . Garrison . | . . . . . . . . . . . . . . . . . . . Intercept . | . . . . . . . . . . . . . . . . . . . Searches Triggered . | . . . . . . . . . . . . . . . . . . . Construction Impeded 1 | . . . . . . . . . . . . . . . . . . 1 Haulers Reinforced . | . . . . . . . . . . . . . . . . . . . Active Scanning Responses . | . . . . . . . . . . . . . . . . . . . Cargo Convoy Interrupts . | . . . . . . . . . . . . . . . . . . . Stealth | -11 -10 -10 -10 -9 -8 -8 -8 -6 -6 -5 -5 -5 -5 -4 -4 -4 -3 -2 --------- Run | Yrd Mat Min Exi Min Mat Sto Rec Fac DSF Fac Was Fac DSF Fac Upp Upp Res Res Distress Signals 1 | . . . . . 1 . . . . . . . . . . . . . Communications Jammed . | . . . . . . . . . . . . . . . . . . . Distress Signals . | . . . . . . . . . . . . . . . . . . . Times Spotted 83 | . 7 2 . 2 15 2 5 . 3 3 . . . 11 6 6 9 12 Peak Tracking Total 10 | . 7 2 . 2 10 1 5 . 3 3 . . 1 10 4 6 7 9 Tactical Retreats 6 | . . 1 . . 1 . . . . . . . . . 2 . 2 . Traps | -11 -10 -10 -10 -9 -8 -8 -8 -6 -6 -5 -5 -5 -5 -4 -4 -4 -3 -2 ------- Run | Yrd Mat Min Exi Min Mat Sto Rec Fac DSF Fac Was Fac DSF Fac Upp Upp Res Res Traps Triggered 5 | . . . . . 1 1 . . . 2 . . . 1 . . . . Indirectly . | . . . . . . . . . . . . . . . . . . . Trap Hack Attempts . | . . . . . . . . . . . . . . . . . . . Triggered . | . . . . . . . . . . . . . . . . . . . Disarmed . | . . . . . . . . . . . . . . . . . . . Reprogrammed . | . . . . . . . . . . . . . . . . . . . Reused . | . . . . . . . . . . . . . . . . . . . Traps Extracted . | . . . . . . . . . . . . . . . . . . . Installed . | . . . . . . . . . . . . . . . . . . . Triggered . | . . . . . . . . . . . . . . . . . . . Machines | -11 -10 -10 -10 -9 -8 -8 -8 -6 -6 -5 -5 -5 -5 -4 -4 -4 -3 -2 ---------- Run | Yrd Mat Min Exi Min Mat Sto Rec Fac DSF Fac Was Fac DSF Fac Upp Upp Res Res Machines Disabled . | . . . . . . . . . . . . . . . . . . . Max in Single Turn . | . . . . . . . . . . . . . . . . . . . Machines Repaired . | . . . . . . . . . . . . . . . . . . . Machines Dismantled . | . . . . . . . . . . . . . . . . . . . Machines Sabotaged . | . . . . . . . . . . . . . . . . . . . Overloaded Fab Kills . | . . . . . . . . . . . . . . . . . . . Hacking | -11 -10 -10 -10 -9 -8 -8 -8 -6 -6 -5 -5 -5 -5 -4 -4 -4 -3 -2 --------- Run | Yrd Mat Min Exi Min Mat Sto Rec Fac DSF Fac Was Fac DSF Fac Upp Upp Res Res Machines Accessed 23 | . 1 . . . 3 3 . 2 . 3 . 5 . 1 . . 4 1 Terminals 22 | . 1 . . . 3 3 . 2 . 3 . 5 . 1 . . 3 1 Fabricators . | . . . . . . . . . . . . . . . . . . . Repair Stations . | . . . . . . . . . . . . . . . . . . . Recycling Units . | . . . . . . . . . . . . . . . . . . . Scanalyzers . | . . . . . . . . . . . . . . . . . . . Garrison Access 1 | . . . . . . . . . . . . . . . . . 1 . Total Hacks 49 | . 3 . . . 9 5 . 2 . 9 . 8 . 2 . . 8 3 Successful 17 | . 1 . . . 1 3 . 1 . 3 . 3 . 1 . . 2 2 Failed 32 | . 2 . . . 8 2 . 1 . 6 . 5 . 1 . . 6 1 Catastrophic 12 | . 1 . . . 3 1 . 1 . 2 . 3 . . . . 1 . Database Lockouts . | . . . . . . . . . . . . . . . . . . . Manual 43 | . 3 . . . 9 5 . 1 . 7 . 7 . 2 . . 6 3 Terminals 47 | . 3 . . . 9 5 . 2 . 9 . 8 . 2 . . 6 3 Fabricators . | . . . . . . . . . . . . . . . . . . . Repair Stations . | . . . . . . . . . . . . . . . . . . . Recycling Units . | . . . . . . . . . . . . . . . . . . . Scanalyzers . | . . . . . . . . . . . . . . . . . . . Garrison Access 2 | . . . . . . . . . . . . . . . . . 2 . Terminal Hacks 6 | . . . . . . 2 . 1 . 1 . 1 . . . . . 1 Record 1 | . . . . . . 1 . . . . . . . . . . . . Open Door 1 | . . . . . . 1 . . . . . . . . . . . . Open DSF 3 | . . . . . . . . 1 . 1 . 1 . . . . . . Level Access Points 1 | . . . . . . . . . . . . . . . . . . 1 Fabricator Hacks . | . . . . . . . . . . . . . . . . . . . Repair Station Hacks . | . . . . . . . . . . . . . . . . . . . Recycling Unit Hacks . | . . . . . . . . . . . . . . . . . . . Scanalyzer . | . . . . . . . . . . . . . . . . . . . Garrison Access Hacks . | . . . . . . . . . . . . . . . . . . . Unauthorized Hacks 11 | . 1 . . . 1 1 . . . 2 . 2 . 1 . . 2 1 Terminals 11 | . 1 . . . 1 1 . . . 2 . 2 . 1 . . 2 1 Botnet 11 | . 1 . . . 1 1 . . . 2 . 2 . 1 . . 2 1 Fabricators . | . . . . . . . . . . . . . . . . . . . Repair Stations . | . . . . . . . . . . . . . . . . . . . Recycling Units . | . . . . . . . . . . . . . . . . . . . Scanalyzers . | . . . . . . . . . . . . . . . . . . . Garrison Access . | . . . . . . . . . . . . . . . . . . . Data Cores Recovered . | . . . . . . . . . . . . . . . . . . . Used . | . . . . . . . . . . . . . . . . . . . Hacking Detections 22 | . 1 . . . 3 3 . 1 . 3 . 5 . 1 . . 4 1 Full Trace Events 3 | . 1 . . . 2 . . . . . . . . . . . . . Feedback Events 1 | . . . . . 1 . . . . . . . . . . . . . Corruption 1 | . . . . . 1 . . . . . . . . . . . . . Feedback Blocked . | . . . . . . . . . . . . . . . . . . . Robot Schematics Acquired . | . . . . . . . . . . . . . . . . . . . Robots Built . | . . . . . . . . . . . . . . . . . . . Authchips . | . . . . . . . . . . . . . . . . . . . Time . | . . . . . . . . . . . . . . . . . . . Total Robot Build Rating . | . . . . . . . . . . . . . . . . . . . Part Schematics Acquired . | . . . . . . . . . . . . . . . . . . . Parts Built . | . . . . . . . . . . . . . . . . . . . Authchips . | . . . . . . . . . . . . . . . . . . . Time . | . . . . . . . . . . . . . . . . . . . Total Part Build Rating . | . . . . . . . . . . . . . . . . . . . Parts Repaired . | . . . . . . . . . . . . . . . . . . . Time . | . . . . . . . . . . . . . . . . . . . Parts Recycled . | . . . . . . . . . . . . . . . . . . . Recycled Matter . | . . . . . . . . . . . . . . . . . . . Retrieved Matter . | . . . . . . . . . . . . . . . . . . . Retrieved Components . | . . . . . . . . . . . . . . . . . . . Parts Scanalyzed . | . . . . . . . . . . . . . . . . . . . Part Schematics Acquired . | . . . . . . . . . . . . . . . . . . . Parts Damaged . | . . . . . . . . . . . . . . . . . . . Bothacking | -11 -10 -10 -10 -9 -8 -8 -8 -6 -6 -5 -5 -5 -5 -4 -4 -4 -3 -2 ------------ Run | Yrd Mat Min Exi Min Mat Sto Rec Fac DSF Fac Was Fac DSF Fac Upp Upp Res Res Used RIF Installer . | . . . . . . . . . . . . . . . . . . . Robots Hacked . | . . . . . . . . . . . . . . . . . . . Non-combat . | . . . . . . . . . . . . . . . . . . . Combat . | . . . . . . . . . . . . . . . . . . . Robot Hacks Applied . | . . . . . . . . . . . . . . . . . . . Relay Couplers Released . | . . . . . . . . . . . . . . . . . . . Fabnet Peak Effective % . | . . . . . . . . . . . . . . . . . . . Robots Rewired . | . . . . . . . . . . . . . . . . . . . Allies Hacked . | . . . . . . . . . . . . . . . . . . . Hacks Repelled . | . . . . . . . . . . . . . . . . . . . Allies | -11 -10 -10 -10 -9 -8 -8 -8 -6 -6 -5 -5 -5 -5 -4 -4 -4 -3 -2 -------- Run | Yrd Mat Min Exi Min Mat Sto Rec Fac DSF Fac Was Fac DSF Fac Upp Upp Res Res Total Allies 5 | . . 2 . 3 . . . . . . . . . . . . . . Largest Group 3 | . . 2 . 3 . . . . . . . . . . . . . . Highest-Rated Group 47 | . . 47 . 40 . . . . . . . . . . . . . . Highest-Rated Ally 31 | . . 31 . 16 . . . . . . . . . . . . . . Total Orders . | . . . . . . . . . . . . . . . . . . . Ally Attacks 5 | . . 5 . . . . . . . . . . . . . . . . Total Damage 84 | . . 84 . . . . . . . . . . . . . . . . Kills . | . . . . . . . . . . . . . . . . . . . Allies Corrupted . | . . . . . . . . . . . . . . . . . . . Allies Melted . | . . . . . . . . . . . . . . . . . . . Intel | -11 -10 -10 -10 -9 -8 -8 -8 -6 -6 -5 -5 -5 -5 -4 -4 -4 -3 -2 ------- Run | Yrd Mat Min Exi Min Mat Sto Rec Fac DSF Fac Was Fac DSF Fac Upp Upp Res Res Active Infowar (turns) . | . . . . . . . . . . . . . . . . . . . Robot Analysis Total . | . . . . . . . . . . . . . . . . . . . Derelict Logs Recovered 2 | . . . . 1 . . . . . . . . . . 1 . . . Drone Launches . | . . . . . . . . . . . . . . . . . . . Drone Recoveries . | . . . . . . . . . . . . . . . . . . . Exploration | -11 -10 -10 -10 -9 -8 -8 -8 -6 -6 -5 -5 -5 -5 -4 -4 -4 -3 -2 ------------- Run | Yrd Mat Min Exi Min Mat Sto Rec Fac DSF Fac Was Fac DSF Fac Upp Upp Res Res Turns Passed 1629 | 10 68 97 76 152 73 70 64 71 30 102 78 108 15 121 129 34 149 182 Spaces Moved 2918 | 16 132 118 152 304 140 109 127 113 56 187 156 213 30 137 251 63 262 352 Core 2918 | 16 132 118 152 304 140 109 127 113 56 187 156 213 30 137 251 63 262 352 Treads . | . . . . . . . . . . . . . . . . . . . Legs . | . . . . . . . . . . . . . . . . . . . Wheels . | . . . . . . . . . . . . . . . . . . . Hover . | . . . . . . . . . . . . . . . . . . . Flight . | . . . . . . . . . . . . . . . . . . . Fastest Speed 50 | 50 50 50 50 50 50 50 50 50 50 50 50 50 50 50 50 50 50 50 Average Speed 50 | 50 50 50 50 50 50 50 50 50 50 50 50 50 50 50 50 50 50 50 Slowest Speed 50 | 50 50 50 50 50 50 50 50 50 50 50 50 50 50 50 50 50 50 50 Overloaded Moves . | . . . . . . . . . . . . . . . . . . . Propulsion Burnouts . | . . . . . . . . . . . . . . . . . . . Robots Hopped . | . . . . . . . . . . . . . . . . . . . Potential Cave-ins . | . . . . . . . . . . . . . . . . . . . Cave-ins Triggered . | . . . . . . . . . . . . . . . . . . . Exploration Rate (%) 31 | 3 35 34 54 60 24 24 41 3 78 7 82 10 41 6 57 13 14 7 Regions Visited 18 Branch Regions 7 Pre-discovered Areas 2 | . . . . 1 . . . . . . . . . . 1 . . . Known Exits Taken 2 | . . . . . . . . 1 . . . 1 . . . . . . Unknown Exits Taken 12 | 1 1 1 1 1 1 1 1 . . . . . . 1 1 1 1 . Scrap Searched 1 | . . . . 1 . . . . . . . . . . . . . . Spaces Dug . | . . . . . . . . . . . . . . . . . . . Terrain Destroyed . | . . . . . . . . . . . . . . . . . . . Melee . | . . . . . . . . . . . . . . . . . . . Projectile . | . . . . . . . . . . . . . . . . . . . AOE . | . . . . . . . . . . . . . . . . . . . Terrain Rammed . | . . . . . . . . . . . . . . . . . . . Walls Destroyed . | . . . . . . . . . . . . . . . . . . . Machines Disabled . | . . . . . . . . . . . . . . . . . . . Actions | -11 -10 -10 -10 -9 -8 -8 -8 -6 -6 -5 -5 -5 -5 -4 -4 -4 -3 -2 --------- Run | Yrd Mat Min Exi Min Mat Sto Rec Fac DSF Fac Was Fac DSF Fac Upp Upp Res Res Total 3067 | 17 133 155 151 303 142 123 126 126 57 195 155 213 29 188 253 64 279 358 Wait 112 | . . 38 . . . . . 14 . 8 . . . 45 . . 7 . Move 2901 | 15 131 117 151 303 139 108 126 112 55 187 155 212 29 136 250 62 261 352 Hop . | . . . . . . . . . . . . . . . . . . . Pick Up . | . . . . . . . . . . . . . . . . . . . Fast Attach . | . . . . . . . . . . . . . . . . . . . Attach . | . . . . . . . . . . . . . . . . . . . Detach . | . . . . . . . . . . . . . . . . . . . Swap . | . . . . . . . . . . . . . . . . . . . Drop . | . . . . . . . . . . . . . . . . . . . Fire . | . . . . . . . . . . . . . . . . . . . Melee . | . . . . . . . . . . . . . . . . . . . Ram 38 | 2 2 . . . 3 . . . 1 . . 1 . 7 3 2 11 6 Kick . | . . . . . . . . . . . . . . . . . . . Crush . | . . . . . . . . . . . . . . . . . . . Escape Stasis 15 | . . . . . . 15 . . . . . . . . . . . . Rewire 1 | . . . . . . . . . 1 . . . . . . . . . Trap . | . . . . . . . . . . . . . . . . . . . Miscellaneous . | . . . . . . . . . . . . . . . . . . . Route ------- -11/Scrapyard -10/Materials (discovered 2 exits: [*Min x2]) -10/Mines -10/Exiles -9/Mines -8/Materials -8/Storage -8/Recycling -6/Factory -6/DSF -5/Factory -5/Waste -5/Factory -5/DSF -4/Factory -4/Upper Caves -4/Upper Caves -3/Research -2/Research (discovered 3 exits: Acc x3) History --------- Turn | Location | Event 3 | -11/Scrapyard | Discovered new exit (range 16) 11 | -11/Scrapyard | Entered Materials 36 | -10/Materials | Discovered new exit (range 4) 77 | -10/Materials | Discovered new exit (range 6) 79 | -10/Materials | Entered Mines 112 | -10/Mines | Core integrity fell below 50% 133 | -10/Mines | Deemed a non-threat by the Exiles lab entrance 133 | -10/Mines | Discovered new exit (range 5) 176 | -10/Mines | Entered Exiles 188 | -10/Exiles | Met 8R-AWN 198 | -10/Exiles | Met EX-HEX 211 | -10/Exiles | Met EX-BIN 217 | -10/Exiles | Aligned with FarCom system 217 | -10/Exiles | Given EX-Vault access code 231 | -10/Exiles | Met EX-DEC 248 | -10/Exiles | Discovered new exit (range 10) 252 | -10/Exiles | Entered Mines 272 | -9/Mines | Assisted by bots powering up and referring to "LRC-V3" 273 | -9/Mines | Learned location of Zion (-6) 292 | -9/Mines | Received a Rocket Launcher from a helpful Derelict 305 | -9/Mines | Build established: Mutant 400 | -9/Mines | Discovered new exit (range 10) 404 | -9/Mines | Entered Materials 404 | -8/Materials | Evolved 4 slots: Power x4 466 | -8/Materials | Core integrity fell below 50% 470 | -8/Materials | Discovered new exit (range 16) 477 | -8/Materials | Entered Storage 545 | -8/Storage | Used back door to open Recycling access 545 | -8/Storage | Discovered new exit (range 5) 547 | -8/Storage | Entered Recycling 548 | -8/Recycling | Met a Zionite searching for Scraptown 600 | -8/Recycling | Discovered new exit (range 16) 611 | -8/Recycling | Entered Factory 611 | -6/Factory | Evolved 4 slots: Power x4 682 | -6/Factory | Identified exit to DSF 682 | -6/Factory | Entered DSF 701 | -6/DSF | Additional patrols routed to DSF 705 | -6/DSF | Discovered new exit (range 15) 712 | -6/DSF | Entered Factory 712 | -5/Factory | Evolved 2 slots: Power x2 814 | -5/Factory | Manually triggered Chute Trap 814 | -5/Factory | Sucked down chute 814 | -5/Factory | Entered Waste 814 | -5/Waste | The area was eerily silent 887 | -5/Waste | Discovered new exit (range 12) 892 | -5/Waste | Entered Factory 999 | -5/Factory | Identified exit to DSF 1000 | -5/Factory | Entered DSF 1010 | -5/DSF | Discovered new exit (range 11) 1015 | -5/DSF | Entered Factory 1015 | -4/Factory | Evolved 2 slots: Power x2 1130 | -4/Factory | Discovered new exit (range 11) 1136 | -4/Factory | Entered Upper Caves 1198 | -4/Upper Caves | Spotted B-86 Titan 1228 | -4/Upper Caves | Learned location of Armory (-3) 1257 | -4/Upper Caves | Core integrity fell below 50% 1262 | -4/Upper Caves | Discovered new exit (range 6) 1265 | -4/Upper Caves | Entered another Upper Caves area 1281 | -4/Upper Caves | Attracted the attention of an 0b10 checkpoint 1293 | -4/Upper Caves | Discovered new exit (range 8) 1299 | -4/Upper Caves | Entered Research 1299 | -3/Research | Evolved 2 slots: Power x2 1436 | -3/Research | Discovered new exit (range 13) 1448 | -3/Research | Entered another Research area 1448 | -2/Research | Evolved 2 slots: Power x2 1517 | -2/Research | Identified exit to Access 1590 | -2/Research | Core integrity fell below 50% 1598 | -2/Research | Core integrity fell below 20% 1630 | -2/Research | Destroyed by H-88 Terminator with KE Penetrator Last Messages --------------- 01590_ Penetrated by Slug. 01590_ Slammed into H-88 Terminator. 01592_ Penetrated by Slug. 01592_ Slammed into H-88 Terminator. 01593_ Penetrated by Slug. 01593_ Slug penetrates H-88 Terminator. 01595_ Penetrated by Slug. 01600_ Slug penetrates Wall. 01602_ Slammed into U-05 Engineer. 01602_ ALERT: Construction progress impeded, dispatching reinforcements to local area. 01618_ O-24 Administrator: "IFF HANDSHAKE FAILED. SECURING TERMINAL." 01622_ Penetrated by Slug. 01622_ Slug penetrates Wall. 01623_ ALERT: Hostiles spotted, dispatching reinforcements to Terminal R004. 01628_ Slug penetrates Wall. 01629_ Penetrated by Slug. 01629_ Slug penetrates Wall. 01630_ Penetrated by Slug. Map ----- +----------------------------------------------------+ | #????????????????????????????????????????? | | """ #????????????????????????????????????????? | | """ #????????????????????????????????????????? | | """ #????????????????????????????????????????? | | #????????????????????????????????????????? | | #????????????????????????????????????????? | | #????????????????????????????????????????? | | """ #????????????????????????????????????????? | | """ #????????????????????????????????????????? | | """ #????????????????????????????????????????? | | ##########+###########???????????????????? | | #???????????????????? | | #???????????????????? | | #???????????????????? | | #???????????????????? | | ####+######+######+###### #???????????????????? | | #?? ??# ! ## #???????????????????? | | # # ## #???????????????????? | | " # * # h ""## +???????????????????? | | " # # %""## #???????????????????? | | " # # T"## #???????????????????? | | " # """"" # ""## #???????????????????? | | " # """"" # ""## #???????????????????? | | # """"" # ## #???????????????????? | | ########### h ## #???????????????????? | | #######?????????# ##@ #???????????????????? | | ????????????????# [ /h #???????????????????? | | ????????????????# ## #???????????????????? | | ????????????????# ## #???????????????????? | | ????????????????######### #???????????????????? | | ????????????????????????# #???????????????????? | | ????????????????????????# #??BB???????????????? | | ????????????????????????+ h#??BB???????????????? | | ????????????????????????# ???????????????????? | | ????????????????????????# h???????????????????? | | ????????????????????????# ??????????????????? | | ????????????????????????? ??????????????????? | | ????????????????????????? h ?????????????????? | | ????????????????????????? " "?????????????????? | | ????????????????????????? ""???????????????????? | | ????????????????????????? ?????????????????????? | | ?????????????????????????????????????????????????? | | ?????????????????????????????????????????????????? | | ?????????????????????????????????????????????????? | | ?????????????????????????????????????????????????? | | ?????????????????????????????????????????????????? | | ?????????????????????????????????????????????????? | | ?????????????????????????????????????????????????? | | ?????????????????????????????????????????????????? | | ?????????????????????????????????????????????????? | +----------------------------------------------------+ Best States ------------- Heat Dissipation 49 Energy Generation 5 Energy Capacity 100 Matter Stores 300 Matter Capacity 300 Sight Range 16 Terrain Scan Density 10 Evasion (%) 50 Item Schematics ----------------- None Robot Schematics ------------------ None Fabricated ------------ Nothing Repaired ---------- Nothing Alien Tech Used ----------------- None Achievements -------------- Desperate Times \\IAMDERELICT Challenges ------------ None Game ------ Seed AmuletGatlingChainsword Manual? 0 Play Time 00:27:59 Cumulative 21.0 hours Start 2025.06.19 @ 15:17:40 End 2025.06.19 @ 15:43:00 Sessions 1 Manual Loads 0 Difficulty Rogue Special Mode None Game No. 34 Rogue 34 Adventurer 0 Explorer 0 Win Type - Total 2 Types 2/0/0/0/0/0/0/0/0/0 Lore% 17 Gallery% 19 Achievement% 31 Wizard Run 0 Options --------- Layout 0 ASCII 0 Keyboard 1 Movement Vi Keybinds 0 Fullscreen 1 Font 18/SmallcapsGlow Map View 76x50 Zoom Use 0% Tactical HUD 1 Map Filters NONE Filters NONE Steam 1 RUN: 60d103b2-d6d9-4906-a35a-51548a6addb0